fUSD/lending_fUSD_20240423
["ID","MTS","AMOUNT","RATE_DAILY","PERIOD"]
[323315674,1713886248758,-885.05,0.00012283,2]
[323315675,1713886248767,-502.20526245,0.00012283,2]
[323315676,1713886248777,-632.57,0.00012283,2]
[323315677,1713886248786,-500.0,0.00012283,2]
[323315678,1713886248795,-500.0,0.00012283,2]
[323315679,1713886248805,-878.24,0.00012283,2]
[323315680,1713886248814,-500.0,0.00012283,2]
[323315681,1713886248824,-807.02,0.00012283,2]
[323315682,1713886248833,-606.35,0.00012283,2]
[323315683,1713886248843,-936.15,0.00012283,2]
[323315684,1713886248852,-500.0,0.00012283,2]
[323315685,1713886248861,-683.75,0.00012283,2]
[323315686,1713886248871,-808.58,0.00012283,2]
[323315687,1713886248880,-2270.54,0.00012283,2]
[323315688,1713886248889,-669.73,0.00012283,2]
[323315689,1713886248898,-500.0,0.00012283,2]
[323315690,1713886248907,-869.59,0.00012283,2]
[323315691,1713886248917,-3147.86,0.00012283,2]
[323315692,1713886248926,-500.0,0.00012283,2]
[323315693,1713886248934,-500.0,0.00012283,2]
[323315694,1713886248945,-500.0,0.00012283,2]
[323315695,1713886248954,-847.01,0.00012283,2]
[323315696,1713886248963,-548.45,0.00012283,2]
[323315697,1713886248972,-500.0,0.00012283,2]
[323315698,1713886248982,-500.0,0.00012283,2]
[323315699,1713886248991,-536.23,0.00012283,2]
[323315700,1713886249000,-615.4,0.00012283,2]
[323315701,1713886249009,-2010.96,0.00012283,2]
[323315702,1713886249022,-4730.17,0.00012283,2]
[323315703,1713886249032,-500.0,0.00012283,2]
[323315704,1713886249041,-2404.73,0.00012283,2]
[323315705,1713886249051,-621.52,0.00012283,2]
[323315706,1713886249060,-817.37,0.00012283,2]
[323315707,1713886249070,-716.49,0.00012283,2]
[323315708,1713886249079,-653.95,0.00012283,2]
[323315709,1713886249089,-500.0,0.00012283,2]
[323315710,1713886249098,-3320.71,0.00012283,2]
[323315711,1713886249108,-2505.26,0.00012283,2]
[323315712,1713886249117,-500.0,0.00012283,2]
[323315713,1713886249126,-1529.49,0.00012283,2]
[323315714,1713886249135,-515.02089204,0.00012283,2]
[323315715,1713886249897,-477.42445747,0.00011736,2]
[323315716,1713886250017,-22.57554253,0.00011736,2]
[323315717,1713886250029,-500.0,0.0001201,2]
[323315718,1713886250039,-607.44450676,0.00012283,2]
[323315719,1713886250051,-947.7246012,0.00012283,2]
[323315720,1713886250061,-500.0,0.00012283,2]
[323315721,1713886250071,-500.0,0.00012283,2]
[323315722,1713886250080,-1574.12,0.00012283,2]
[323315723,1713886250091,-1369.19,0.00012283,2]
[323315724,1713886250101,-566.97,0.00012283,2]
[323315725,1713886250113,-537.53,0.00012283,2]
[323315726,1713886250123,-528.51,0.00012283,2]
[323315727,1713886250133,-1034.55,0.00012283,2]
[323315728,1713886250143,-581.35,0.00012283,2]
[323315729,1713886250153,-500.0,0.00012283,2]
[323315730,1713886250162,-1170.45,0.00012283,2]
[323315731,1713886250172,-1425.45,0.00012283,2]
[323315732,1713886250182,-668.13,0.00012283,2]
[323315733,1713886250191,-626.61,0.00012283,2]
[323315734,1713886250203,-500.0,0.00012283,2]
[323315735,1713886250213,-500.0,0.00012283,2]
[323315736,1713886250222,-500.0,0.00012283,2]
[323315737,1713886250232,-500.0,0.00012283,2]
[323315738,1713886250242,-585.93,0.00012283,2]
[323315739,1713886250252,-500.0,0.00012283,2]
[323315740,1713886250261,-445.73539882,0.00012283,2]
[323315741,1713886402382,259.65,9.289e-05,2]
[323315743,1713886520058,-163.6262776,0.000112,2]
[323315744,1713886521941,166.301638,0.00011105,2]
[323315745,1713886535916,313.6262776,9.289e-05,2]
[323315746,1713886547897,174.44705106,0.00011199,2]
[323315747,1713886553810,216.05167049,0.00011199,2]
[323315748,1713886581618,-213.94764815,0.00011204,2]
[323315749,1713886581639,-386.05235185,0.00011205,2]
[323315750,1713886620567,167.49,0.00011138,2]
[323315751,1713886620699,400.0,0.00011138,2]
[323315752,1713886639069,204.38,0.00011138,2]
[323315753,1713886897158,349.71,0.00011157,2]
[323315754,1713886903203,246.66,9.257e-05,2]
[323315755,1713887077747,1231.12219897,0.00011,2]
[323315756,1713887119692,150.0,0.00011068,2]
[323315757,1713887119713,150.0,0.00011068,2]
[323315758,1713887119741,380.0,0.00011068,2]
[323315759,1713887133887,89.86188561,0.00011,2]
[323315760,1713887133907,210.13811439,0.00011,2]
[323316237,1713887401011,234.32,9.169e-05,2]
[323316249,1713887432454,-155.0,0.00011223,2]
[323316251,1713887432463,-150.0,0.00011224,2]
[323316253,1713887432473,-651.96982121,0.00011224,2]
[323316254,1713887432497,-469.0,0.00011224,2]
[323316255,1713887432509,-1626.72135298,0.00011224,2]
[323316256,1713887432521,-562.4996314,0.00011224,2]
[323316257,1713887432551,-1273.2570455,0.00011224,2]
[323316258,1713887432561,-42449.08,0.00011225,2]
[323316259,1713887432571,-1873.38589662,0.00011414,2]
[323316260,1713887432581,-234.32,0.00011433,2]
[323316261,1713887432590,-350.0,0.00011636,2]
[323316262,1713887432599,-217.93812175,0.00011733,2]
[323316263,1713887432608,-161.51762488,0.00011733,2]
[323316264,1713887432618,-438.48237512,0.00011733,2]
[323316265,1713887432627,-174.49742338,0.00011734,2]
[323316266,1713887432636,-500.0,0.00011735,2]
[323316267,1713887432645,-500.0,0.00011735,2]
[323316268,1713887432654,-500.0,0.00011735,2]
[323316269,1713887432663,-500.0,0.00011735,2]
[323316270,1713887432672,-500.0,0.00011735,2]
[323316271,1713887432681,-500.0,0.00011735,2]
[323316272,1713887432690,-617.1,0.00011735,2]
[323316273,1713887432698,-500.0,0.00011735,2]
[323316274,1713887432707,-500.0,0.00011735,2]
[323316275,1713887432716,-500.0,0.00011735,2]
[323316276,1713887432726,-500.0,0.00011735,2]
[323316277,1713887432735,-500.0,0.00011735,2]
[323316278,1713887432744,-500.0,0.00011735,2]
[323316279,1713887432754,-500.0,0.00011735,2]
[323316280,1713887432763,-500.0,0.00011735,2]
[323316281,1713887432772,-552.08,0.00011735,2]
[323316282,1713887432781,-402.24410463,0.00011735,2]
[323316283,1713887432792,-97.75589537,0.00011735,2]
[323316284,1713887432801,-544.07,0.00011735,2]
[323316285,1713887432811,-500.0,0.00011735,2]
[323316286,1713887432820,-500.0,0.00011735,2]
[323316287,1713887432829,-159.71,0.00011735,2]
[323316288,1713887432838,-500.0,0.00011735,2]
[323316289,1713887432847,-500.0,0.00011735,2]
[323316290,1713887432857,-500.0,0.00011735,2]
[323316291,1713887432866,-500.0,0.00011735,2]
[323316292,1713887432875,-500.0,0.00011735,2]
[323316293,1713887432885,-500.0,0.00011735,2]
[323316294,1713887432894,-500.0,0.00011735,2]
[323316295,1713887432906,-500.0,0.00011735,2]
[323316296,1713887432916,-500.0,0.00011735,2]
[323316298,1713887432925,-646.97,0.00011735,2]
[323316300,1713887432935,-500.0,0.00011735,2]
[323316302,1713887432945,-500.0,0.00011735,2]
[323316304,1713887432955,-579.86,0.00011735,2]
[323316306,1713887432964,-500.0,0.00011735,2]
[323316307,1713887432973,-22.30087638,0.00011735,2]
[323316308,1713887432985,-264.33864655,0.00011735,2]
[323316309,1713887433001,-213.36047707,0.00011735,2]
[323316310,1713887433011,-500.0,0.00011735,2]
[323316311,1713887433020,-483.55750578,0.00011735,2]
[323316312,1713887433032,-16.44249422,0.00011735,2]
[323316313,1713887433042,-508.73,0.00011735,2]
[323316314,1713887433051,-299.88,0.00011735,2]
[323316315,1713887433061,-670.90842817,0.00011735,2]
[323316316,1713887433090,-74.08157183,0.00011735,2]
[323316317,1713887433099,-480.50403695,0.00011735,2]
[323316318,1713887433110,-554.95596305,0.00011735,2]
[323316319,1713887433119,-244.15643341,0.00011735,2]
[323316320,1713887433165,-255.84356659,0.00011735,2]
[323316321,1713887433174,-500.0,0.00011735,2]
[323316322,1713887433184,-99.01715401,0.00011735,2]
[323316323,1713887433195,-425.74284599,0.00011735,2]
[323316324,1713887433205,-500.0,0.00011735,2]
[323316325,1713887433214,-159.33542432,0.00011735,2]
[323316326,1713887433226,-340.66457568,0.00011735,2]
[323316327,1713887433236,-500.0,0.00011735,2]
[323316328,1713887433478,-416.16677583,0.00011735,2]
[323316329,1713887433488,-500.0,0.00011735,2]
[323316330,1713887433497,-260.75198079,0.00011735,2]
[323316331,1713887433507,-500.0,0.00011735,2]
[323316332,1713887433517,-500.0,0.00011735,2]
[323316333,1713887433526,-311.4666677,0.00011735,2]
[323316334,1713887433538,-188.5333323,0.00011735,2]
[323316335,1713887433547,-500.0,0.00011735,2]
[323316336,1713887433557,-446.77690217,0.00011735,2]
[323316359,1713887438078,-53.22309783,0.00011735,2]
[323316361,1713887438088,-500.0,0.00011735,2]
[323316363,1713887438097,-114.92553217,0.00011735,2]
[323316367,1713887438151,-385.07446783,0.00011735,2]
[323316368,1713887438162,-500.0,0.00011735,2]
[323316369,1713887438172,-500.0,0.00011735,2]
[323316370,1713887438181,-500.0,0.00011735,2]
[323316371,1713887438190,-160.80433859,0.00011735,2]
[323316372,1713887438202,-339.19566141,0.00011735,2]
[323316373,1713887438211,-500.0,0.00011735,2]
[323316374,1713887438220,-500.0,0.00011735,2]
[323316375,1713887438230,-364.22024859,0.00011735,2]
[323316376,1713887438262,-135.77975141,0.00011735,2]
[323316377,1713887438272,-500.0,0.00011735,2]
[323316378,1713887438281,-500.0,0.00011735,2]
[323316379,1713887438290,-500.0,0.00011735,2]
[323316380,1713887438299,-788.31,0.00011735,2]
[323316381,1713887438308,-500.0,0.00011735,2]
[323316382,1713887438317,-500.0,0.00011735,2]
[323316383,1713887438326,-500.0,0.00011735,2]
[323316384,1713887438335,-500.0,0.00011735,2]
[323316385,1713887438344,-500.0,0.00011735,2]
[323316386,1713887438353,-500.0,0.00011735,2]
[323316387,1713887438362,-500.0,0.00011735,2]
[323316388,1713887438374,-500.0,0.00011735,2]
[323316389,1713887438384,-500.0,0.00011735,2]
[323316390,1713887438392,-516.4,0.00011735,2]
[323316391,1713887438401,-500.0,0.00011735,2]
[323316392,1713887438413,-500.0,0.00011735,2]
[323316393,1713887438422,-500.0,0.00011735,2]
[323316395,1713887438431,-500.0,0.00011735,2]
[323316397,1713887438440,-500.0,0.00011735,2]
[323316399,1713887438449,-195.2,0.00011735,2]
[323316401,1713887438459,-500.0,0.00011735,2]
[323316403,1713887438468,-191.26,0.00011735,2]
[323316404,1713887438478,-493.15691584,0.00011736,2]
[323316405,1713887438487,-216.4646599,0.00011736,2]
[323316406,1713887438496,-428.15705754,0.00011736,2]
[323316407,1713887438505,-1242.78,0.00011736,2]
[323316408,1713887438514,-155.36246108,0.00011736,2]
[323316409,1713887438523,-271.30520559,0.00011736,2]
[323316410,1713887438532,-500.0,0.00011736,2]
[323316412,1713887438541,-1128.55503217,0.0001177,2]
[323316414,1713887438550,-251.14525574,0.00011907,2]
[323316416,1713887438559,-500.0,0.00011908,2]
[323316418,1713887438568,-500.0,0.00011908,2]
[323316420,1713887438578,-500.0,0.00011908,2]
[323316422,1713887438587,-500.0,0.00011908,2]
[323316424,1713887438596,-500.0,0.00011908,2]
[323316426,1713887438605,-500.0,0.00011908,2]
[323316429,1713887438621,-500.0,0.00011908,2]
[323316431,1713887438633,-500.0,0.00011908,2]
[323316433,1713887438645,-500.0,0.00011908,2]
[323316436,1713887438659,-500.0,0.00011908,2]
[323316438,1713887438670,-500.0,0.00011908,2]
[323316440,1713887438681,-500.0,0.00011908,2]
[323316442,1713887438693,-500.0,0.00011908,2]
[323316445,1713887438731,-500.0,0.00011908,2]
[323316447,1713887438744,-500.0,0.00011908,2]
[323316449,1713887438754,-500.0,0.00011908,2]
[323316451,1713887438766,-500.0,0.00011908,2]
[323316454,1713887438777,-500.0,0.00011908,2]
[323316456,1713887438789,-500.0,0.00011908,2]
[323316458,1713887438800,-500.0,0.00011908,2]
[323316460,1713887438811,-1150.38,0.00011908,2]
[323316463,1713887438822,-500.0,0.00011908,2]
[323316465,1713887438834,-500.0,0.00011908,2]
[323316466,1713887438845,-470.99,0.00011908,2]
[323316468,1713887438854,-892.32,0.00011908,2]
[323316470,1713887438865,-500.0,0.00011908,2]
[323316472,1713887438876,-553.12,0.00011908,2]
[323316474,1713887438889,-973.47,0.00011908,2]
[323316477,1713887438899,-500.0,0.00011908,2]
[323316479,1713887438912,-694.86,0.00011908,2]
[323316481,1713887438923,-1020.52,0.00011908,2]
[323316483,1713887438934,-500.0,0.00011908,2]
[323316485,1713887438945,-500.0,0.00011908,2]
[323316487,1713887438956,-772.03,0.00011908,2]
[323316490,1713887438968,-500.0,0.00011908,2]
[323316492,1713887438980,-500.0,0.00011908,2]
[323316494,1713887438989,-852.66,0.00011908,2]
[323316496,1713887438999,-2754.38,0.00011908,2]
[323316498,1713887439009,-542.05,0.00011908,2]
[323316501,1713887439022,-500.0,0.00011908,2]
[323316503,1713887439035,-626.49,0.00011908,2]
[323316505,1713887439046,-500.0,0.00011908,2]
[323316507,1713887439057,-641.24,0.00011908,2]
[323316510,1713887439069,-586.01,0.00011908,2]
[323316511,1713887439080,-504.85,0.00011908,2]
[323316512,1713887439091,-500.0,0.00011908,2]
[323316513,1713887439102,-500.0,0.00011908,2]
[323316514,1713887439114,-500.0,0.00011908,2]
[323316515,1713887439124,-500.0,0.00011908,2]
[323316516,1713887439136,-500.0,0.00011908,2]
[323316517,1713887439149,-945.53,0.00011908,2]
[323316518,1713887439160,-2440.68,0.00011908,2]
[323316519,1713887439172,-673.0,0.00011908,2]
[323316520,1713887439184,-782.03,0.00011908,2]
[323316521,1713887439196,-500.0,0.00011908,2]
[323316522,1713887439208,-500.0,0.00011908,2]
[323316524,1713887439220,-705.57,0.00011908,2]
[323316526,1713887439232,-4417.31,0.00011908,2]
[323316528,1713887439244,-500.0,0.00011908,2]
[323316530,1713887439254,-592.3,0.00011908,2]
[323316533,1713887439264,-2093.36,0.00011908,2]
[323316535,1713887439274,-919.39,0.00011908,2]
[323316537,1713887439284,-500.0,0.00011908,2]
[323316539,1713887439294,-2589.04,0.00011908,2]
[323316541,1713887439304,-3290.76,0.00011908,2]
[323316543,1713887439315,-189.68,0.00011908,2]
[323316545,1713887439326,-500.0,0.00011908,2]
[323316548,1713887439337,-500.0,0.00011908,2]
[323316550,1713887439347,-1302.29,0.00011908,2]
[323316552,1713887439358,-1598.18,0.00011908,2]
[323316554,1713887439372,-980.49,0.00011908,2]
[323316556,1713887439384,-686.22,0.00011908,2]
[323316559,1713887439394,-500.0,0.00011908,2]
[323316561,1713887439404,-500.0,0.00011908,2]
[323316563,1713887439415,-1033.02,0.00011908,2]
[323316565,1713887439425,-500.0,0.00011908,2]
[323316567,1713887439435,-1094.42,0.00011908,2]
[323316569,1713887439446,-554.09,0.00011908,2]
[323316571,1713887439458,-555.78,0.00011908,2]
[323316574,1713887439469,-500.0,0.00011908,2]
[323316576,1713887439480,-500.0,0.00011908,2]
[323316578,1713887439490,-548.29,0.00011908,2]
[323316580,1713887439504,-550.51,0.00011908,2]
[323316583,1713887439514,-500.0,0.00011908,2]
[323316585,1713887439525,-185.26,0.00011908,2]
[323316587,1713887439536,-500.0,0.00011908,2]
[323316589,1713887439546,-500.0,0.00011908,2]
[323316591,1713887439558,-824.33,0.00011908,2]
[323316593,1713887439569,-1492.51,0.00011908,2]
[323316596,1713887439579,-500.0,0.00011908,2]
[323316598,1713887439590,-500.0,0.00011908,2]
[323316600,1713887439601,-500.0,0.00011908,2]
[323316602,1713887439612,-1409.19,0.00011908,2]
[323316604,1713887439622,-500.0,0.00011908,2]
[323316606,1713887439632,-500.0,0.00011908,2]
[323316608,1713887439644,-769.3,0.00011908,2]
[323316610,1713887439655,-597.98,0.00011908,2]
[323316613,1713887439667,-3661.62,0.00011908,2]
[323316615,1713887439680,-500.0,0.00011908,2]
[323316617,1713887439692,-500.0,0.00011908,2]
[323316619,1713887439704,-673.62,0.00011908,2]
[323316621,1713887439714,-13284.09,0.00011908,2]
[323316624,1713887439725,-2974.97,0.00011908,2]
[323316626,1713887439736,-1009.34,0.00011908,2]
[323316628,1713887439747,-602.21,0.00011909,2]
[323316630,1713887439758,-500.0,0.00011909,2]
[323316632,1713887439769,-500.0,0.00011909,2]
[323316635,1713887439780,-500.0,0.00011909,2]
[323316637,1713887439790,-948.48,0.00011909,2]
[323316639,1713887439800,-639.27,0.00011909,2]
[323316641,1713887439811,-500.0,0.00011909,2]
[323316643,1713887439821,-500.0,0.00011909,2]
[323316645,1713887439833,-763.08,0.00011909,2]
[323316648,1713887439844,-500.0,0.00011909,2]
[323316650,1713887439854,-500.0,0.00011909,2]
[323316652,1713887439865,-624.82,0.00011909,2]
[323316654,1713887439875,-611.86,0.00011909,2]
[323316656,1713887439885,-500.0,0.00011909,2]
[323316658,1713887439896,-528.75,0.00011909,2]
[323316660,1713887439907,-500.0,0.00011909,2]
[323316663,1713887439919,-500.0,0.00011909,2]
[323316666,1713887439930,-500.0,0.00011909,2]
[323316668,1713887439941,-500.0,0.00011909,2]
[323316670,1713887439952,-500.0,0.00011909,2]
[323316672,1713887439962,-500.0,0.00011909,2]
[323316674,1713887439973,-500.0,0.00011909,2]
[323316676,1713887439985,-500.0,0.00011909,2]
[323316678,1713887439997,-500.0,0.00011909,2]
[323316681,1713887440007,-500.0,0.00011909,2]
[323316683,1713887440019,-500.0,0.00011909,2]
[323316685,1713887440030,-531.77,0.00011909,2]
[323316687,1713887440041,-500.0,0.00011909,2]
[323316690,1713887440052,-500.0,0.00011909,2]
[323316692,1713887440063,-500.0,0.00011909,2]
[323316695,1713887440073,-500.0,0.00011909,2]
[323316697,1713887440085,-500.0,0.00011909,2]
[323316699,1713887440096,-500.0,0.00011909,2]
[323316701,1713887440107,-500.0,0.00011909,2]
[323316704,1713887440118,-604.26,0.00011909,2]
[323316706,1713887440129,-500.0,0.00011909,2]
[323316708,1713887440139,-584.57,0.00011909,2]
[323316711,1713887440150,-500.0,0.00011909,2]
[323316713,1713887440162,-500.0,0.00011909,2]
[323316715,1713887440172,-500.0,0.00011909,2]
[323316718,1713887440183,-822.56,0.00011909,2]
[323316720,1713887440193,-500.0,0.00011909,2]
[323316722,1713887440204,-663.2,0.00011909,2]
[323316724,1713887440215,-500.0,0.00011909,2]
[323316726,1713887440226,-528.85,0.00011909,2]
[323316728,1713887440237,-1637.05,0.00011909,2]
[323316731,1713887440248,-500.0,0.00011909,2]
[323316733,1713887440258,-500.0,0.00011909,2]
[323316735,1713887440269,-500.0,0.00011909,2]
[323316737,1713887440280,-564.28,0.00011909,2]
[323316739,1713887440290,-1592.52,0.00011909,2]
[323316741,1713887440301,-500.0,0.00011909,2]
[323316743,1713887440312,-500.0,0.00011909,2]
[323316746,1713887440323,-5609.14,0.00011909,2]
[323316748,1713887440334,-1052.61,0.00011909,2]
[323316750,1713887440344,-500.0,0.00011909,2]
[323316752,1713887440355,-500.0,0.00011909,2]
[323316754,1713887440366,-1298.21,0.00011909,2]
[323316756,1713887440379,-536.04,0.00011909,2]
[323316759,1713887440390,-486.915,0.00011909,2]
[323316761,1713887440401,-1110.45,0.00011909,2]
[323316763,1713887440412,-701.06,0.00011909,2]
[323316765,1713887440422,-500.0,0.00011909,2]
[323316767,1713887440433,-629.05,0.00011909,2]
[323316769,1713887440444,-500.0,0.00011909,2]
[323316771,1713887440455,-16670.81,0.00011909,2]
[323316774,1713887440466,-1717.41,0.00011909,2]
[323316776,1713887440477,-2081.33,0.00011909,2]
[323316778,1713887440488,-500.0,0.00011909,2]
[323316780,1713887440498,-500.0,0.00011909,2]
[323316782,1713887440509,-500.0,0.00011909,2]
[323316784,1713887440520,-759.45,0.00011909,2]
[323316786,1713887440530,-1136.03,0.00011909,2]
[323316789,1713887440541,-500.0,0.00011909,2]
[323316791,1713887440552,-500.0,0.00011909,2]
[323316793,1713887440562,-500.0,0.00011909,2]
[323316795,1713887440573,-841.41,0.00011909,2]
[323316797,1713887440584,-500.0,0.00011909,2]
[323316799,1713887440595,-500.0,0.00011909,2]
[323316802,1713887440608,-500.0,0.00011909,2]
[323316804,1713887440618,-1843.38,0.00011909,2]
[323316806,1713887440629,-724.66,0.00011909,2]
[323316808,1713887440639,-716.57,0.00011909,2]
[323316810,1713887440650,-551.55,0.00011909,2]
[323316813,1713887440662,-941.0,0.00011909,2]
[323316815,1713887440672,-500.0,0.00011909,2]
[323316817,1713887440682,-500.0,0.00011909,2]
[323316819,1713887440693,-500.0,0.00011909,2]
[323316821,1713887440704,-500.0,0.00011909,2]
[323316823,1713887440714,-500.0,0.00011909,2]
[323316825,1713887440725,-599.45,0.00011909,2]
[323316828,1713887440735,-801.62,0.00011909,2]
[323316830,1713887440745,-500.0,0.00011909,2]
[323316832,1713887440756,-500.0,0.00011909,2]
[323316834,1713887440766,-500.0,0.00011909,2]
[323316836,1713887440777,-500.0,0.00011909,2]
[323316838,1713887440788,-890.0,0.00011909,2]
[323316841,1713887440798,-500.0,0.00011909,2]
[323316843,1713887440809,-500.0,0.00011909,2]
[323316845,1713887440821,-644.63,0.00011909,2]
[323316847,1713887440831,-500.0,0.00011909,2]
[323316849,1713887440843,-782.33,0.00011909,2]
[323316852,1713887440854,-1215.67,0.00011909,2]
[323316854,1713887440865,-528.62,0.00011909,2]
[323316856,1713887440875,-500.0,0.00011909,2]
[323316858,1713887440887,-500.0,0.00011909,2]
[323316860,1713887440897,-1527.22,0.00011909,2]
[323316861,1713887440908,-565.34,0.00011909,2]
[323316862,1713887440921,-500.0,0.00011909,2]
[323316863,1713887440932,-500.0,0.00011909,2]
[323316864,1713887440943,-2286.68,0.00011909,2]
[323316865,1713887440954,-802.19,0.00011909,2]
[323316866,1713887440965,-500.0,0.00011909,2]
[323316867,1713887440975,-500.0,0.00011909,2]
[323316869,1713887440986,-839.32,0.00011909,2]
[323316871,1713887440996,-500.0,0.00011909,2]
[323316873,1713887441006,-500.0,0.00011909,2]
[323316875,1713887441017,-524.85,0.00011909,2]
[323316877,1713887441027,-500.0,0.00011909,2]
[323316878,1713887441038,-500.0,0.00011909,2]
[323316879,1713887441048,-500.0,0.00011909,2]
[323316880,1713887441059,-500.0,0.00011909,2]
[323316881,1713887441070,-640.43,0.00011909,2]
[323316882,1713887441081,-617.6,0.00011909,2]
[323316883,1713887441091,-1874.24,0.00011909,2]
[323316884,1713887441102,-8457.7746,0.0001191,2]
[323316885,1713887441113,-61262.4856,0.0001191,2]
[323316887,1713887441125,-1750.0,0.00012,2]
[323316889,1713887441136,-3069.43072971,0.00012007,2]
[323316890,1713887441146,-3748.82110867,0.00012008,2]
[323316891,1713887441157,-500.0,0.00012008,2]
[323316892,1713887441169,-500.0,0.00012008,2]
[323316893,1713887441179,-255.3668917,0.00012009,2]
[323316894,1713887441190,-500.0,0.00012009,2]
[323316895,1713887441201,-500.0,0.00012009,2]
[323316896,1713887441211,-471.82,0.00012009,2]
[323316897,1713887441221,-500.0,0.00012009,2]
[323316898,1713887441231,-500.0,0.00012009,2]
[323316899,1713887441241,-500.0,0.00012009,2]
[323316900,1713887441252,-500.0,0.00012009,2]
[323316901,1713887441262,-500.0,0.00012009,2]
[323316902,1713887441273,-500.0,0.00012009,2]
[323316903,1713887441284,-500.0,0.00012009,2]
[323316904,1713887441294,-500.0,0.00012009,2]
[323316905,1713887441304,-500.0,0.00012009,2]
[323316906,1713887441316,-500.0,0.00012009,2]
[323316907,1713887441326,-552.08,0.00012009,2]
[323316908,1713887441337,-500.0,0.00012009,2]
[323316909,1713887441347,-313.37173995,0.00012009,2]
[323316910,1713887441358,-500.0,0.00012009,2]
[323316911,1713887441369,-500.0,0.00012009,2]
[323316912,1713887441381,-500.0,0.00012009,2]
[323316913,1713887441391,-500.0,0.00012009,2]
[323316914,1713887441401,-500.0,0.00012009,2]
[323316915,1713887441411,-500.0,0.00012009,2]
[323316916,1713887441423,-500.0,0.00012009,2]
[323316917,1713887441434,-500.0,0.00012009,2]
[323316918,1713887441444,-646.97,0.00012009,2]
[323316919,1713887441456,-500.0,0.00012009,2]
[323316920,1713887441467,-500.0,0.00012009,2]
[323316921,1713887441477,-579.86,0.00012009,2]
[323316922,1713887441488,-500.0,0.00012009,2]
[323316923,1713887441498,-500.0,0.00012009,2]
[323316924,1713887441509,-500.0,0.00012009,2]
[323316925,1713887441892,-500.0,0.00012009,2]
[323316926,1713887441911,-508.73,0.00012009,2]
[323316927,1713887441934,-744.99,0.00012009,2]
[323316928,1713887441945,-1035.46,0.00012009,2]
[323316929,1713887441955,-500.0,0.00012009,2]
[323316930,1713887441964,-500.0,0.00012009,2]
[323316931,1713887441974,-524.76,0.00012009,2]
[323316932,1713887441984,-500.0,0.00012009,2]
[323316933,1713887441994,-500.0,0.00012009,2]
[323316934,1713887442003,-500.0,0.00012009,2]
[323316935,1713887442013,-215.13923748,0.00012009,2]
[323316936,1713887442022,-500.0,0.00012009,2]
[323316937,1713887442031,-500.0,0.00012009,2]
[323316938,1713887442040,-264.17473392,0.00012009,2]
[323316939,1713887442049,-500.0,0.00012009,2]
[323316940,1713887442059,-624.14,0.00012009,2]
[323316941,1713887442069,-503.89035421,0.00012009,2]
[323316942,1713887442079,-500.0,0.00012009,2]
[323316943,1713887442089,-500.0,0.00012009,2]
[323316944,1713887442098,-500.0,0.00012009,2]